bitfinex/quotes_BTCUSD_20241208
["timestamp","ask_amount","ask_price","bid_price","bid_amount"]
[1733698930789,1.68188641,100250.0,100240.0,0.0018622]
[1733698931088,1.5783302,100250.0,100240.0,0.0018622]
[1733698931449,1.35488473,100250.0,100240.0,0.0018622]
[1733698932150,1.5783302,100250.0,100240.0,0.0018622]
[1733698932347,1.35488473,100250.0,100240.0,0.0018622]
[1733698934568,1.27874063,100250.0,100240.0,0.0018622]
[1733698935177,1.289156,100250.0,100240.0,0.0018622]
[1733698935420,0.81490662,100250.0,100240.0,0.0018622]
[1733698936839,0.78382862,100250.0,100240.0,0.0018622]
[1733698937661,0.73382862,100250.0,100240.0,0.0813622]
[1733698937868,0.69451383,100250.0,100240.0,0.0813622]
[1733698939179,0.64451383,100250.0,100240.0,0.0813622]
[1733698939308,0.69451383,100250.0,100240.0,0.0813622]
[1733698940187,0.64451383,100250.0,100240.0,0.0813622]
[1733698941259,0.67151383,100250.0,100240.0,0.1267622]
[1733698941465,0.66109846,100250.0,100240.0,0.1267622]
[1733698945956,0.61109846,100250.0,100240.0,0.1267622]
[1733698946812,0.49638998,100250.0,100240.0,0.1267622]
[1733698947900,0.39636047,100250.0,100240.0,0.1267622]
[1733698950351,0.05860643,100250.0,100240.0,0.3063312]
[1733698950964,0.89843894,100260.0,100250.0,0.1281]
[1733698951187,0.5476,100260.0,100250.0,0.307651]
[1733698951399,0.58187641,100260.0,100250.0,0.307651]
[1733698951785,0.73187641,100260.0,100250.0,0.307651]
[1733698952221,0.73187641,100260.0,100250.0,0.1281]
[1733698952893,0.73487641,100260.0,100250.0,0.1281]
[1733698953107,0.74287641,100260.0,100250.0,0.1291]
[1733698953329,0.91440941,100260.0,100250.0,0.1281]
[1733698953548,0.91140941,100260.0,100250.0,0.1281]
[1733698953822,0.91640941,100260.0,100250.0,0.1281]
[1733698955168,0.36880941,100260.0,100250.0,0.1281]
[1733698955775,0.36380941,100260.0,100250.0,0.1281]
[1733698955949,0.36880941,100260.0,100250.0,0.1281]
[1733698956149,0.18927641,100260.0,100250.0,0.1281]
[1733698956420,0.18527641,100260.0,100250.0,0.1281]
[1733698956588,0.18427641,100260.0,100250.0,0.1281]
[1733698956789,0.36380941,100260.0,100250.0,0.1291]
[1733698957767,0.18427641,100260.0,100250.0,0.1291]
[1733698960712,0.18926662,100260.0,100250.0,0.1291]
[1733698961142,0.36879962,100260.0,100250.0,0.1291]
[1733698962719,0.36380941,100260.0,100250.0,0.1291]
[1733698964886,0.36467351,100260.0,100250.0,0.1291]
[1733698965861,0.3303971,100260.0,100250.0,0.1291]
[1733698974146,0.37156883,100260.0,100250.0,0.1291]
[1733698976674,0.37156883,100260.0,100250.0,0.1308282]
[1733698990290,0.4611432,100260.0,100250.0,0.1308282]
[1733698991291,0.46123877,100260.0,100250.0,0.1308282]
[1733698992606,0.59574368,100260.0,100250.0,0.1308282]
[1733698994486,0.77508357,100260.0,100250.0,0.1308282]
[1733698995862,0.99925843,100260.0,100250.0,0.1308282]
[1733698996536,1.02225843,100260.0,100250.0,0.1308282]
[1733698996763,1.02225843,100260.0,100250.0,0.0027282]
[1733698996764,1.10866985,100260.0,100250.0,0.0027282]
[1733698997223,1.52157062,100260.0,100250.0,0.0027282]
[1733698998361,1.65625906,100260.0,100250.0,0.0027282]
[1733699004379,1.58098448,100260.0,100250.0,0.0027282]
[1733699005998,1.44629604,100260.0,100250.0,0.0784282]
[1733699006425,1.58095243,100260.0,100250.0,0.0784282]
[1733699006845,1.44629604,100260.0,100250.0,0.0784282]
[1733699007081,1.58095147,100260.0,100250.0,0.0784282]
[1733699007755,1.44629604,100260.0,100250.0,0.0784282]
[1733699008369,1.5809456,100260.0,100250.0,0.0784282]
[1733699009731,1.44629604,100260.0,100250.0,0.0784282]
[1733699009964,1.58094183,100260.0,100250.0,0.0784282]
[1733699010617,1.58094366,100260.0,100250.0,0.0784282]
[1733699011127,1.58094154,100260.0,100250.0,0.0784282]
[1733699011511,1.58094154,100260.0,100250.0,0.1243282]
[1733699012521,1.44629604,100260.0,100250.0,0.1243282]
[1733699012696,1.58094211,100260.0,100250.0,0.1243282]
[1733699013303,1.42329604,100260.0,100250.0,0.06390129]
[1733699013686,1.55794065,100260.0,100250.0,0.06390129]
[1733699013889,1.42329604,100260.0,100250.0,0.06390129]
[1733699014116,1.55794317,100260.0,100250.0,0.06390129]
[1733699015205,0.179551,100250.0,100240.0,0.0498622]
[1733699015372,0.40395995,100250.0,100240.0,0.0498622]
[1733699015770,0.26931282,100250.0,100240.0,0.0498622]
[1733699015968,0.40395995,100250.0,100240.0,0.0498622]
[1733699016371,0.40395995,100250.0,100240.0,0.1360622]
[1733699017029,0.40395995,100250.0,100240.0,0.1390622]
[1733699017435,0.40395995,100250.0,100240.0,0.1360622]
[1733699017684,0.40395995,100250.0,100240.0,0.1320622]
[1733699017924,0.40394483,100250.0,100240.0,0.1330622]
[1733699018470,0.26930548,100250.0,100240.0,0.1330622]
[1733699018680,0.4039372,100250.0,100240.0,0.1330622]
[1733699018888,0.58344617,100250.0,100240.0,0.1330622]
[1733699019065,0.4039372,100250.0,100240.0,0.1330622]
[1733699021086,0.4235372,100250.0,100240.0,0.1330622]
[1733699023631,0.42351552,100250.0,100240.0,0.1330622]
[1733699028193,0.52354503,100250.0,100240.0,0.1330622]
[1733699028816,0.70303665,100250.0,100240.0,0.1330622]
[1733699029229,0.70303665,100250.0,100240.0,0.0840622]
[1733699029430,0.52354503,100250.0,100240.0,0.0840622]
[1733699029843,0.38892632,100250.0,100240.0,0.0840622]
[1733699030880,0.52354503,100250.0,100240.0,0.0840622]
[1733699031293,0.34399403,100250.0,100240.0,0.0840622]
[1733699032692,0.34399324,100250.0,100240.0,0.0840622]
[1733699033131,0.34485654,100250.0,100240.0,0.0840622]
[1733699034407,0.25511105,100250.0,100240.0,0.08784329]
[1733699034626,0.34486487,100250.0,100240.0,0.13734329]
[1733699034876,0.84950579,100250.0,100240.0,0.00564329]
[1733699035101,0.9280058,100250.0,100240.0,0.00564329]
[1733699035348,1.02288021,100250.0,100240.0,0.00564329]
[1733699035764,0.92306487,100250.0,100240.0,0.00464329]
[1733699036211,0.92806487,100250.0,100240.0,0.00464329]
[1733699036428,1.69997052,100250.0,100240.0,0.00464329]
[1733699036686,1.62369594,100250.0,100240.0,0.00464329]
[1733699036909,1.21661543,100250.0,100240.0,0.08594329]
[1733699037121,1.18150685,100250.0,100240.0,0.31121229]
[1733699037363,0.9523379,100250.0,100240.0,0.13164329]
[1733699037574,0.9563379,100250.0,100240.0,0.13164329]
[1733699037778,0.5526,100250.0,100240.0,0.1278622]
[1733699038005,0.5526,100250.0,100240.0,0.3074312]
[1733699039291,0.005,100250.0,100240.0,0.3074312]
[1733699040586,0.005,100250.0,100240.0,0.38270578]
[1733699041032,0.005,100250.0,100240.0,0.3970088]
[1733699041260,0.005,100250.0,100240.0,0.3074312]
[1733699041477,0.005,100250.0,100240.0,0.39921268]
[1733699041722,0.005,100250.0,100240.0,0.13006608]
[1733699041723,0.184551,100250.0,100240.0,0.13006608]
[1733699041936,0.09470452,100250.0,100240.0,0.30963508]
[1733699042153,0.005,100250.0,100240.0,0.30963508]
[1733699043031,1.19266109,100260.0,100250.0,0.081]
[1733699043300,1.26327055,100260.0,100250.0,0.0822148]
[1733699043532,0.65711543,100260.0,100250.0,0.38634038]
[1733699043769,0.56741091,100260.0,100250.0,0.3110658]
[1733699045003,0.56741091,100260.0,100250.0,0.309851]
[1733699045492,0.01981091,100260.0,100250.0,0.309851]
[1733699045736,0.02081091,100260.0,100250.0,0.309851]
[1733699045956,0.02181091,100260.0,100250.0,0.309851]
[1733699046430,0.00211395,100260.0,100250.0,0.38512558]
[1733699046655,1.59566435,100280.0,100270.0,0.309815]
[1733699046656,0.04268257,100280.0,100270.0,0.309815]
[1733699046886,0.0008641,100280.0,100270.0,0.309815]
[1733699047124,1.26526425,100300.0,100290.0,0.0805]
[1733699047353,1.32054133,100300.0,100290.0,0.0805]
[1733699047582,0.5476,100300.0,100290.0,0.23752807]
[1733699047846,0.5476,100300.0,100290.0,0.35820265]
[1733699048087,1.01128335,100320.0,100300.0,0.179461]
[1733699048351,0.00311704,100310.0,100300.0,0.43418658]
[1733699048583,0.00311704,100310.0,100290.0,0.6724432]
[1733699048855,0.00311704,100310.0,100290.0,0.47960758]
[1733699048856,0.00311723,100300.0,100290.0,0.47960758]
[1733699049127,0.00611723,100300.0,100290.0,0.57963709]
[1733699049409,0.86599398,100330.0,100310.0,0.0492]
[1733699049617,0.179425,100320.0,100310.0,0.0492]
[1733699050564,0.18254202,100320.0,100310.0,0.1257]
[1733699051295,0.179443,100310.0,100300.0,0.0821]
[1733699051803,0.45889451,100320.0,100300.0,0.0821]
[1733699051804,0.45889151,100320.0,100300.0,0.0821]
[1733699052039,0.179425,100320.0,100300.0,0.44102]
[1733699052244,0.18254214,100320.0,100300.0,0.44102]
[1733699053018,0.18254214,100320.0,100300.0,0.44202]
[1733699054601,0.18254214,100320.0,100300.0,0.44102]
[1733699056396,0.18426874,100320.0,100300.0,0.44102]
[1733699057238,0.18426874,100320.0,100300.0,0.620471]
[1733699057451,0.0017266,100320.0,100310.0,0.0468]
[1733699057667,0.00484356,100320.0,100310.0,0.0468]
[1733699058287,0.18426856,100320.0,100310.0,0.0468]
[1733699058675,0.00484356,100320.0,100310.0,0.226243]
[1733699058876,0.00484356,100320.0,100310.0,0.303643]
[1733699059111,0.0017266,100320.0,100310.0,0.303643]
[1733699060011,0.6787356,100330.0,100310.0,0.303643]
[1733699060221,0.6787356,100330.0,100310.0,0.483086]
[1733699060445,0.179409,100330.0,100310.0,0.483086]
[1733699060652,0.18252577,100330.0,100310.0,0.483086]
[1733699060899,0.18751261,100330.0,100310.0,0.483086]
[1733699061102,0.18751261,100330.0,100310.0,0.484086]
[1733699061316,0.18751261,100330.0,100310.0,0.304643]
[1733699062358,0.36380484,100330.0,100310.0,0.304643]
[1733699062568,0.36380484,100330.0,100310.0,0.1252]
[1733699062996,0.36380484,100330.0,100310.0,0.304643]
[1733699062997,0.0031168,100320.0,100310.0,0.304643]
[1733699063657,0.18439584,100330.0,100310.0,0.304643]
[1733699063872,0.18439584,100330.0,100310.0,0.405686]
[1733699064091,0.18439584,100330.0,100320.0,0.0768]
[1733699066646,0.179409,100330.0,100320.0,0.0778]
[1733699066865,1.04281839,100340.0,100320.0,0.0778]
[1733699067076,0.00311669,100330.0,100320.0,0.257225]
[1733699067355,0.67151984,100340.0,100320.0,0.48535]
[1733699067574,0.67151984,100340.0,100320.0,0.305925]
[1733699067807,0.67255208,100340.0,100320.0,0.304925]
[1733699068033,0.70734606,100340.0,100320.0,0.485349]
[1733699068280,0.70631382,100340.0,100320.0,0.485349]
[1733699068482,0.00103272,100340.0,100330.0,0.259407]
[1733699068890,0.179383,100350.0,100330.0,0.08]
[1733699069170,0.179383,100350.0,100330.0,0.0801717]
[1733699069171,0.358763,100350.0,100330.0,0.0801717]
[1733699069598,0.17939,100340.0,100330.0,0.0801717]
[1733699070221,0.17939,100340.0,100330.0,0.0811717]
[1733699070832,0.17939,100340.0,100330.0,0.0801717]
[1733699072832,0.35455909,100340.0,100330.0,0.0001717]
[1733699073381,0.179407,100330.0,100320.0,0.13186817]
[1733699074422,0.179433,100320.0,100300.0,0.0814]
[1733699074632,0.179443,100310.0,100300.0,0.0814]
[1733699074869,0.358872,100320.0,100300.0,0.0814]
[1733699075072,0.179443,100310.0,100300.0,0.0814]
[1733699076015,0.179464,100300.0,100290.0,0.0802]
[1733699076499,0.358936,100300.0,100280.0,0.0808]
[1733699076704,0.538412,100300.0,100280.0,0.0808]
[1733699076915,0.179479,100290.0,100280.0,0.0808]
[1733699077340,0.179479,100290.0,100280.0,0.08137261]
[1733699077548,0.179479,100290.0,100280.0,0.08437261]
[1733699078167,0.179479,100290.0,100280.0,0.00357261]
[1733699078581,0.358936,100300.0,100280.0,0.00357261]
[1733699078790,0.179479,100290.0,100280.0,0.00357261]
[1733699079091,0.179479,100290.0,100280.0,0.00057261]
[1733699079496,1.00656551,100300.0,100280.0,0.00857261]
[1733699079699,0.18259698,100290.0,100280.0,0.00857261]
[1733699079939,0.179479,100290.0,100280.0,0.00857261]
[1733699080367,0.179479,100290.0,100280.0,0.00557261]
[1733699080792,0.329479,100290.0,100280.0,0.00657261]
[1733699081004,1.09168055,100290.0,100280.0,0.00657261]
[1733699081209,1.14168055,100290.0,100280.0,0.00657261]
[1733699081995,1.14168055,100290.0,100280.0,0.00557261]
[1733699082200,1.09168055,100290.0,100280.0,0.00557261]
[1733699082402,1.14168055,100290.0,100280.0,0.00857261]
[1733699082835,1.09168055,100290.0,100280.0,0.00857261]
[1733699083035,1.14168055,100290.0,100280.0,0.00857261]
[1733699083244,1.09168055,100290.0,100280.0,0.00857261]
[1733699083683,1.14168055,100290.0,100280.0,0.00857261]
[1733699083877,1.09168055,100290.0,100280.0,0.00857261]
[1733699084598,1.14168055,100290.0,100280.0,0.00857261]
[1733699084798,1.09168055,100290.0,100280.0,0.00857261]
[1733699084942,1.24149589,100290.0,100280.0,0.00857261]
[1733699085144,1.14168055,100290.0,100280.0,0.00857261]
[1733699085999,1.17648401,100290.0,100280.0,0.00557261]
[1733699086249,1.17648401,100290.0,100280.0,0.00057261]
[1733699086461,1.17748401,100290.0,100280.0,0.00057261]
[1733699086665,1.17948401,100290.0,100280.0,0.00057261]
[1733699088520,1.19928071,100290.0,100280.0,0.00057261]
[1733699088936,1.20447544,100290.0,100280.0,0.00057261]
[1733699090731,1.01816282,100290.0,100280.0,0.00057261]
[1733699091148,0.96816282,100290.0,100280.0,0.00057261]
[1733699091358,0.83868382,100290.0,100280.0,0.00057261]
[1733699091573,0.96816282,100290.0,100280.0,0.00057261]
[1733699092334,0.96816282,100290.0,100280.0,1.1e-07]
[1733699093236,0.96716282,100290.0,100280.0,1.1e-07]
[1733699093438,0.96516282,100290.0,100280.0,1.1e-07]
[1733699093568,0.96616282,100290.0,100280.0,1.1e-07]
[1733699093778,0.85259078,100290.0,100280.0,1.1e-07]
[1733699094565,0.75277544,100290.0,100280.0,1.1e-07]
[1733699095185,0.11457204,100260.0,100240.0,0.1288622]
[1733699095477,0.179551,100250.0,100240.0,0.12897615]
[1733699095668,0.329551,100250.0,100240.0,0.12897615]
[1733699096277,0.329551,100250.0,100240.0,0.13097615]
[1733699096755,0.329551,100250.0,100240.0,0.13697615]
[1733699096956,0.329551,100250.0,100240.0,0.13497615]
[1733699097470,0.64396789,100250.0,100240.0,0.00697615]
[1733699097662,0.42958051,100250.0,100240.0,0.00697615]
[1733699097862,0.54415255,100250.0,100240.0,0.00697615]
[1733699098202,0.54415255,100250.0,100240.0,0.00997615]
[1733699099625,0.58371328,100250.0,100240.0,0.00997615]
[1733699101572,0.65671328,100250.0,100240.0,0.00997615]
[1733699102329,0.46914124,100250.0,100240.0,0.00997615]
[1733699102812,0.58371328,100250.0,100240.0,0.00997615]
[1733699103524,0.65671328,100250.0,100240.0,0.00997615]
[1733699103750,0.73291328,100250.0,100240.0,0.00997615]
[1733699106560,0.36911173,100250.0,100240.0,0.13607615]
[1733699106780,0.03956073,100250.0,100240.0,0.13607615]
[1733699107002,0.21911173,100250.0,100240.0,0.13607615]
[1733699107215,0.27958051,100250.0,100240.0,0.13607615]
[1733699107433,0.48943265,100250.0,100240.0,0.00997615]
[1733699107634,0.39415255,100250.0,100240.0,0.00997615]
[1733699107837,0.44415255,100250.0,100240.0,0.00997615]
[1733699108240,0.54415255,100250.0,100240.0,0.00997615]
[1733699108416,0.42958051,100250.0,100240.0,0.00997615]
[1733699108620,0.42958051,100250.0,100240.0,0.08937615]
[1733699117026,0.04120607,100260.0,100250.0,0.0779]
[1733699117259,0.179543,100260.0,100250.0,0.0779]
[1733699117465,0.179543,100260.0,100250.0,0.1248]
[1733699118318,0.329543,100260.0,100250.0,0.1268]
[1733699122281,0.15,100260.0,100250.0,0.1268]
[1733699122492,0.16925736,100270.0,100260.0,0.1239]
[1733699122701,0.21926136,100270.0,100260.0,0.1239]
[1733699122907,0.39878536,100270.0,100260.0,0.1239]
[1733699123113,0.03973736,100270.0,100260.0,0.1239]
[1733699123318,0.331007,100280.0,100270.0,0.1239]
[1733699123520,0.331007,100280.0,100270.0,0.12383763]
[1733699123521,0.37173814,100280.0,100270.0,0.12383763]
[1733699124160,0.36073814,100280.0,100270.0,0.12383763]
[1733699124418,0.50873814,100280.0,100270.0,0.12383763]
[1733699124602,0.329508,100280.0,100270.0,0.12383763]
[1733699124810,0.509019,100280.0,100270.0,0.12383763]
[1733699126272,0.15,100280.0,100270.0,0.30335263]
[1733699126494,0.179497,100280.0,100270.0,0.0471]
[1733699126952,0.179497,100280.0,100270.0,0.1297]
[1733699127170,0.45903251,100280.0,100260.0,0.1315]
[1733699127581,0.60903251,100280.0,100270.0,0.001]
[1733699128009,0.60903251,100280.0,100270.0,0.002]
[1733699128252,0.61075891,100280.0,100270.0,0.001]
[1733699128456,0.61075891,100280.0,100260.0,0.1325]
[1733699128457,0.179515,100270.0,100260.0,0.1325]
[1733699128844,0.179515,100270.0,100260.0,0.1335]
[1733699129049,0.179515,100270.0,100260.0,0.1325]
[1733699129664,0.179515,100270.0,100260.0,0.1315]
[1733699130419,0.5107294,100280.0,100270.0,0.076]
[1733699131605,0.0017264,100280.0,100270.0,0.1223]
[1733699132025,0.0017264,100280.0,100270.0,0.1233]
[1733699132216,0.17949,100290.0,100280.0,0.0787]
[1733699132446,0.358984,100290.0,100280.0,0.1242]
[1733699139739,0.359847,100290.0,100280.0,0.1242]
[1733699142120,0.179502,100280.0,100270.0,0.1286]
[1733699142552,0.18261995,100280.0,100270.0,0.1286]
[1733699143303,0.18261995,100280.0,100270.0,0.1296]
[1733699144268,0.18261995,100280.0,100270.0,0.1306]
[1733699144447,0.179502,100280.0,100270.0,0.1306]
[1733699146063,0.97385771,100280.0,100270.0,0.002]
[1733699146230,0.67460355,100280.0,100270.0,0.002]
[1733699146449,0.56003151,100280.0,100270.0,0.002]
[1733699146747,0.51003151,100280.0,100270.0,0.002]
[1733699147432,0.42953151,100280.0,100270.0,0.002]
[1733699147663,0.42953151,100280.0,100270.0,0.001]
[1733699147874,0.42953151,100280.0,100260.0,0.128326]
[1733699147875,0.329515,100270.0,100260.0,0.128326]
[1733699149023,0.329515,100270.0,100260.0,0.129326]
[1733699149823,0.329515,100270.0,100260.0,0.130326]
[1733699152468,0.279515,100270.0,100260.0,0.130326]
[1733699152810,0.179515,100270.0,100260.0,0.130326]
[1733699157327,0.39411655,100270.0,100260.0,0.003726]
[1733699157472,0.54411655,100270.0,100260.0,0.003726]
[1733699157884,0.42954451,100270.0,100260.0,0.003726]
[1733699158454,0.42954451,100270.0,100260.0,0.001726]
[1733699159093,0.25002951,100270.0,100260.0,0.001726]
[1733699159542,0.97714451,100270.0,100260.0,0.001726]
[1733699161137,0.877115,100270.0,100260.0,0.001726]
[1733699161803,0.727115,100270.0,100260.0,0.001726]
[1733699162524,0.179515,100270.0,100260.0,0.001726]
[1733699168696,0.94759241,100280.0,100260.0,0.126726]
[1733699168954,0.179515,100270.0,100260.0,0.126726]
[1733699169402,0.25477847,100270.0,100260.0,0.126726]
[1733699170134,0.179515,100270.0,100260.0,0.126726]
[1733699170386,0.35480798,100270.0,100260.0,0.001726]
[1733699170631,0.50480798,100270.0,100260.0,0.002726]
[1733699170890,0.50480798,100270.0,100260.0,0.001726]
[1733699171584,1.05240798,100270.0,100260.0,0.001726]
[1733699172533,1.14193265,100270.0,100260.0,0.001726]
[1733699172782,1.05240798,100270.0,100260.0,0.001726]
[1733699173518,1.05327128,100270.0,100260.0,0.001726]
[1733699173719,0.97800781,100270.0,100260.0,0.001726]
[1733699174169,0.7279783,100270.0,100260.0,0.082126]
[1733699174582,0.1803783,100270.0,100260.0,0.082126]
[1733699175638,0.1803783,100270.0,100260.0,0.083126]
[1733699176514,0.1803783,100270.0,100260.0,0.084126]
[1733699181844,0.25564177,100270.0,100260.0,0.084126]
[1733699182059,0.25564177,100270.0,100260.0,0.003726]
[1733699187776,0.34530043,100270.0,100260.0,0.003726]
[1733699188587,0.72981793,100270.0,100260.0,0.003726]
[1733699188819,0.73384227,100270.0,100260.0,0.003726]
[1733699189028,0.80910574,100270.0,100260.0,0.003726]
[1733699189259,0.62978842,100270.0,100260.0,0.003726]
[1733699189460,0.62978842,100270.0,100260.0,0.002726]
[1733699189669,0.62978842,100270.0,100260.0,0.001726]
[1733699190077,0.55452495,100270.0,100260.0,0.083226]
[1733699190351,0.42003696,100270.0,100260.0,0.083226]
[1733699190597,0.62978842,100270.0,100260.0,0.083226]
[1733699190765,0.49530043,100270.0,100260.0,0.083226]
[1733699192252,0.62978842,100270.0,100260.0,0.083226]
[1733699192886,0.80910574,100270.0,100260.0,0.001726]
[1733699193101,1.1332819,100270.0,100260.0,0.001726]
[1733699193911,1.04362324,100270.0,100260.0,0.001726]
[1733699195566,1.59122324,100270.0,100260.0,0.001726]
[1733699196026,1.59167834,100270.0,100260.0,0.001726]
[1733699196963,1.68140932,100270.0,100260.0,0.001726]
[1733699197468,1.59167834,100270.0,100260.0,0.001726]
[1733699198411,1.59167102,100270.0,100260.0,0.001726]
[1733699198837,1.45707658,100270.0,100260.0,0.001726]
[1733699199310,1.05327128,100270.0,100260.0,0.001726]
[1733699199559,1.45703781,100270.0,100260.0,0.001726]
[1733699201371,1.27758602,100270.0,100260.0,0.001726]
[1733699201792,1.58071491,100270.0,100260.0,0.001726]
[1733699202203,1.60071491,100270.0,100260.0,0.001726]
[1733699204188,1.62059828,100270.0,100260.0,0.001726]
[1733699204454,1.62048503,100270.0,100260.0,0.001726]
[1733699204677,1.07288503,100270.0,100260.0,0.001726]
[1733699205368,0.329551,100250.0,100240.0,0.1257622]
[1733699205600,1.35189688,100250.0,100240.0,0.0008622]
[1733699205830,1.2984752,100250.0,100240.0,0.0008622]
[1733699206058,1.19963592,100250.0,100240.0,0.0008622]
[1733699206303,1.16395166,100250.0,100240.0,0.0008622]
[1733699206525,1.02948499,100250.0,100240.0,0.0088622]
[1733699206994,1.02948499,100250.0,100240.0,0.0038622]
[1733699207232,1.02948499,100250.0,100240.0,0.0048622]
[1733699207442,0.78395409,100250.0,100240.0,0.0048622]
[1733699207675,1.04244029,100250.0,100240.0,0.0048622]
[1733699207896,1.13201804,100250.0,100240.0,0.0018622]
[1733699208112,0.72879282,100250.0,100240.0,0.0018622]
[1733699209006,0.90795756,100250.0,100240.0,0.0008622]
[1733699209218,0.72879282,100250.0,100240.0,0.0008622]
[1733699209447,0.65752935,100250.0,100240.0,0.0018622]
[1733699209664,0.03445584,100250.0,100240.0,0.1275622]
[1733699209901,0.35884398,100250.0,100240.0,0.1285622]
[1733699210125,0.58279282,100250.0,100240.0,0.0018622]
[1733699210372,0.86573503,100250.0,100240.0,0.0018622]
[1733699210607,1.41333503,100250.0,100240.0,0.0008622]
[1733699210847,1.63339551,100250.0,100240.0,0.0008622]
[1733699211088,1.78639551,100250.0,100240.0,0.0008622]
[1733699211552,1.56233503,100250.0,100240.0,0.0008622]
[1733699211758,1.38317029,100250.0,100240.0,0.0008622]
[1733699212218,1.30490682,100250.0,100240.0,0.0008622]
[1733699212440,1.30690682,100250.0,100240.0,0.0018622]
[1733699214497,1.17253573,100250.0,100240.0,0.0018622]
[1733699214921,1.1724285,100250.0,100240.0,0.0018622]
[1733699215356,1.38189775,100250.0,100240.0,0.0018622]
[1733699215592,1.24769197,100250.0,100240.0,0.0018622]
[1733699218634,1.26801033,100250.0,100240.0,0.0018622]
[1733699219518,1.36782567,100250.0,100240.0,0.0018622]
[1733699219735,1.2925622,100250.0,100240.0,0.0018622]
[1733699220008,1.37341691,100250.0,100240.0,0.0018622]
[1733699220518,1.27360157,100250.0,100240.0,0.0018622]
[1733699223174,1.1983381,100250.0,100240.0,0.0018622]
[1733699224533,1.1698241,100250.0,100240.0,0.0018622]
[1733699226082,1.24504292,100250.0,100240.0,0.0018622]
[1733699226584,1.16977945,100250.0,100240.0,0.0018622]
[1733699227535,0.329569,100240.0,100230.0,0.06850048]
[1733699227765,0.40483247,100240.0,100230.0,0.06850048]
[1733699230071,0.40683247,100240.0,100230.0,0.06850048]
[1733699231193,0.40683247,100240.0,100230.0,0.07022728]
[1733699232217,0.43629764,100240.0,100230.0,0.07022728]
[1733699238596,0.36103417,100240.0,100230.0,0.11622728]
[1733699238809,0.002,100240.0,100230.0,0.11622728]
[1733699239055,0.002,100240.0,100230.0,0.13922728]
[1733699239286,0.002,100240.0,100230.0,0.14022484]
[1733699239934,0.002,100240.0,100230.0,0.31981084]
[1733699240144,0.002,100240.0,100230.0,0.13922728]
[1733699240365,0.002,100240.0,100230.0,0.14022484]
[1733699240793,0.38887349,100250.0,100240.0,0.1264]
[1733699241009,0.53887349,100250.0,100240.0,0.1264]
[1733699241693,0.38887349,100250.0,100240.0,0.1264]
[1733699242580,0.39087349,100250.0,100240.0,0.1264]
[1733699243500,0.69014349,100250.0,100240.0,0.1264]
[1733699244169,0.76540696,100250.0,100240.0,0.1264]
[1733699245027,0.69014349,100250.0,100240.0,0.1264]
[1733699245476,0.76340696,100250.0,100240.0,0.1264]
[1733699245695,0.4796844,100250.0,100240.0,0.1264]
[1733699246131,0.4796844,100250.0,100240.0,0.1274]
[1733699246608,0.4796844,100250.0,100240.0,0.1284]
[1733699247256,0.4796844,100250.0,100240.0,0.12939751]
[1733699247257,0.2501334,100250.0,100240.0,0.12939751]
[1733699247467,0.2501334,100250.0,100240.0,0.1284]
[1733699248168,0.2501334,100250.0,100240.0,0.49736681]
[1733699248622,0.2501334,100250.0,100240.0,0.40799851]
[1733699248848,0.2501334,100250.0,100240.0,0.49732892]
[1733699251305,0.2001334,100250.0,100240.0,0.40799851]
[1733699253465,0.200997,100250.0,100240.0,0.40799851]
[1733699254650,0.200997,100250.0,100240.0,0.60852545]
[1733699254866,0.200997,100250.0,100240.0,1.13011495]
[1733699254867,0.072897,100250.0,100240.0,1.13011495]
[1733699255089,0.0008633,100260.0,100250.0,0.576251]
[1733699255313,0.0008633,100260.0,100250.0,1.2859309]
[1733699255545,0.358944,100300.0,100280.0,0.1237]
[1733699255763,0.53842,100300.0,100280.0,0.1237]
[1733699255985,0.179469,100300.0,100280.0,0.22372951]
[1733699256264,0.358939,100300.0,100280.0,0.29899298]
[1733699256485,0.00311766,100290.0,100280.0,0.22372951]
[1733699256694,0.38826716,100300.0,100280.0,0.22372951]
[1733699256921,0.02434,100290.0,100280.0,0.22472951]
[1733699258007,0.02434,100290.0,100280.0,0.22372951]
[1733699258282,0.02434,100290.0,100280.0,0.30199298]
[1733699258484,0.02434,100290.0,100280.0,0.30699298]
[1733699258703,0.02434,100290.0,100280.0,0.47848998]
[1733699258931,0.02434,100290.0,100280.0,0.49248998]
[1733699259162,0.02434,100290.0,100280.0,0.61775345]
[1733699259390,0.02434,100290.0,100280.0,0.69075345]
[1733699259606,0.02434,100290.0,100280.0,0.84075345]
[1733699261168,0.02434,100290.0,100280.0,0.69022651]
[1733699263784,0.02434,100290.0,100280.0,0.76548998]
[1733699265110,0.02434,100290.0,100280.0,0.69022651]
[1733699265317,0.02434,100290.0,100280.0,0.76548998]
[1733699266009,0.0252034,100290.0,100280.0,0.76548998]
[1733699266239,0.1546374,100320.0,100300.0,0.1259]
[1733699266469,0.1546374,100320.0,100300.0,0.22692634]
[1733699266692,0.00311691,100320.0,100300.0,0.22692634]
[1733699266913,0.00311691,100320.0,100300.0,0.45638734]
[1733699267133,0.00311691,100320.0,100310.0,0.00099683]
[1733699267390,0.616162,100330.0,100300.0,0.45539051]
[1733699267593,0.179427,100320.0,100300.0,0.27592951]
[1733699267801,0.002,100320.0,100300.0,0.27592951]
[1733699268316,0.179427,100320.0,100300.0,0.27592951]
[1733699268538,0.179427,100320.0,100310.0,0.005]
[1733699268701,0.18254352,100320.0,100300.0,0.27892951]
[1733699268927,0.00311652,100320.0,100300.0,0.27892951]
[1733699269137,0.00311652,100320.0,100300.0,0.28392951]
[1733699269138,0.18254352,100320.0,100300.0,0.28392951]
[1733699269359,0.179427,100320.0,100300.0,0.27892951]
[1733699270031,0.179427,100320.0,100300.0,0.27592951]
[1733699270260,0.179427,100320.0,100310.0,0.003]
[1733699270487,0.18254356,100320.0,100310.0,0.003]
[1733699270716,0.50202279,100330.0,100310.0,0.008]
[1733699270932,0.00311653,100320.0,100310.0,0.003]
[1733699271214,0.179427,100320.0,100310.0,0.003]
[1733699271403,0.179427,100320.0,100300.0,0.28092951]
[1733699271619,0.179427,100320.0,100300.0,0.27892951]
[1733699271831,0.45513932,100330.0,100310.0,0.001]
[1733699272068,0.179427,100320.0,100310.0,0.001]
[1733699272298,0.45513932,100330.0,100300.0,0.27892951]
[1733699272510,0.46012573,100330.0,100310.0,0.005]
[1733699272723,0.18458004,100330.0,100310.0,0.005]
[1733699272947,0.179427,100320.0,100310.0,0.005]
[1733699273360,0.179427,100320.0,100310.0,0.008]
[1733699273489,0.179427,100320.0,100310.0,0.003]